Cogmind - Beta 10.2 @@@ ROGUE MODE // 2021.11.12 @ 16:17:18 Player: rath Result: Self-destructed Performance ------------- Evolutions (1) 500 Regions Visited (2) 400 Robots Destroyed (12) 60 Value Destroyed (321) 321 Prototype IDs (0) 0 Alien Tech Used (0) 0 Bonus (0) 0 TOTAL SCORE: 1281 Bonus ------- None Cogmind --------- Core Integrity 263/400 Matter 221/300 Energy 100/100 System Corruption 0% Temperature Cool (0) Movement Core (550) Ox10 Location -9/Materials Parts ------- > --- POWER (1) -------- (None) > --- PROPULSION (2) --- (None) > --- UTILITY (4) ------ Large Storage Unit Large Storage Unit > --- WEAPON (2) ------- (None) > --- INVENTORY (16) --- Ion Engine Light Ion Engine Aluminum Leg Aluminum Leg Aluminum Leg Wheel Compact Wheel Small Storage Unit Medium Storage Unit Medium Storage Unit EM Shotgun Peak State ------------ > --- POWER ------------ Light Ion Engine > --- PROPULSION ------- Light Treads Light Treads > --- UTILITY ---------- Large Storage Unit Large Storage Unit > --- WEAPON ----------- Medium Laser Small Laser > --- INVENTORY -------- Light Ion Engine Aluminum Leg Aluminum Leg Wheel Compact Wheel Small Storage Unit Medium Storage Unit Medium Storage Unit Small Laser Grenade Launcher [Rating: 8] Favorites ----------- Power Ion Engine Engine Ion Engine Propulsion Light Treads Treads Light Treads Leg Aluminum Leg Utility Large Storage Unit Storage Large Storage Unit Weapon Small Laser Energy Gun Small Laser Launcher Grenade Launcher Build | -11 -10 -9 ------- Run | Scr Mat Mat Slots Evolved 2 | . . 2 Power . | . . . Propulsion . | . . . Utility 2 | . . 2 Weapon . | . . . Parts Attached 16 | . 15 1 Power 3 | . 3 . Engine 3 | . 3 . Core . | . . . Reactor . | . . . Propulsion 7 | . 6 1 Treads 3 | . 2 1 Leg 4 | . 4 . Wheel . | . . . Hover . | . . . Flight . | . . . Utility 2 | . 2 . Device . | . . . Storage 2 | . 2 . Processor . | . . . Hackware . | . . . Protection . | . . . Artifact . | . . . Weapon 4 | . 4 . Energy Gun 3 | . 3 . Energy Cannon . | . . . Ballistic Gun . | . . . Ballistic Cannon . | . . . Launcher 1 | . 1 . Special Weapon . | . . . Impact Weapon . | . . . Slashing Weapon . | . . . Piercing Weapon . | . . . Special Melee Weapon . | . . . Unidentified Prototypes . | . . . Parts Lost 12 | . 11 1 Power 3 | . 3 . Propulsion 3 | . 2 1 Utility . | . . . Weapon 6 | . 6 . Highest Loss Streak 4 | . 4 1 Average Slot Usage (%) 59 | . 76 29 Engine 8 | . 12 . Treads 10 | . 11 7 Leg 6 | . 9 . Storage 25 | . 27 22 Energy Gun 7 | . 11 . Launcher 1 | . 1 . Naked Turns . | . . . Heaviest Build 40 | 10 40 32 Greatest Support 40 | 20 40 20 Greatest Overweight (x) 10 | . 10 10 Average Overweight (x) 2 | . 2 2 Largest Inventory Capacity 16 | . 16 16 Average Capacity 15 | . 15 16 Most Carried 11 | . 11 11 Average Carried 9 | . 9 10 Final Capacity 16 | 6 16 16 Final Carried 11 | 6 10 11 Class Distribution -------------------- 90% | Mutant 9% | Scavenger-Mutant Dominant Class ---------------- Mutant | -10/Materials Mutant | -9/Materials Resources | -11 -10 -9 ----------- Run | Scr Mat Mat Matter Collected 311 | 200 111 . Remotely . | . . . Salvage Created 340 | . 340 . Parts 20 | . 20 . Haulers Intercepted . | . . . Recyclers Shooed . | . . . Parts Field Recycled . | . . . Retrieved Matter . | . . . Parts Self-Destructed . | . . . Prevented . | . . . Kills | -11 -10 -9 ------- Run | Scr Mat Mat Combat Hostiles Destroyed 10 | . 10 . Melee 1 | . 1 . Guns 4 | . 4 . AOE 4 | . 4 . Classes Destroyed 4 | . 4 . Worker 1 | . 1 . Builder 1 | . 1 . Swarmer 2 | . 2 . Grunt 8 | . 8 . Best Kill Streak 5 | . 5 . Combat Bots Only 3 | . 3 . Max Kills in Single Turn 3 | . 3 . Gunslinging . | . . . Exploded 1 | . 1 . Melee 1 | . 1 . Uniques/NPCs Destroyed . | . . . Combat | -11 -10 -9 -------- Run | Scr Mat Mat Damage Taken 1558 | . 1177 381 Core 380 | . 243 137 Absorbed by Shields . | . . . Core Remaining (%) 51 | 100 2 . Volleys Fired 45 | . 45 . Largest 2 | . 2 . Hottest 90 | . 90 . Shots Fired 68 | . 68 . Gun 63 | . 63 . Cannon . | . . . Launcher 5 | . 5 . Special . | . . . Kinetic . | . . . Thermal 63 | . 63 . Explosive 5 | . 5 . Electromagnetic . | . . . Robot Hit Streak 10 | . 10 . Robot Miss Streak 2 | . 2 . Penetration Max . | . . . Secondary Targets 1 | . 1 . Max Gunslinging Chain 1 | . 1 . Shots Hit Robots 50 | . 50 . Core Hits 22 | . 21 1 Critical Hits . | . . . Critical Kills . | . . . Critical Parts Destroyed . | . . . Melee Attacks . | . . . Impact . | . . . Slashing . | . . . Piercing . | . . . Sneak Attacks . | . . . Combat Hostiles . | . . . Follow-up Attacks . | . . . Damage Inflicted 889 | . 887 2 Guns 488 | . 488 . Cannons . | . . . Explosions 387 | . 387 . Melee . | . . . Ramming 14 | . 12 2 Kinetic . | . . . Thermal 488 | . 488 . Explosive 387 | . 387 . Electromagnetic . | . . . Impact . | . . . Slashing . | . . . Piercing . | . . . Highest Corruption . | . . . Average Corruption . | . . . Corruption Purged . | . . . Overload Shots . | . . . Overflow Damage 48 | . 48 . Projectiles . | . . . Explosions 48 | . 48 . Melee . | . . . Knockbacks . | . . . Impact . | . . . Kinetic . | . . . Secondary . | . . . Self-Inflicted Damage 121 | . 121 . Shots 5 | . 5 . Rammed 7 | . 5 2 Targets Rammed 7 | . 5 2 Kicked . | . . . Crushed . | . . . Highest Temperature 488 | . 488 . Average Temperature 222 | . 222 . Received Heat Transfer 714 | . 498 216 Effects 10 | . 10 . Shutdowns 1 | . 1 . Energy Bleed 1 | . 1 . Interference 2 | . 2 . Matter Decay 1 | . 1 . Short Circuit 1 | . 1 . Damage (major) 4 | . 4 . Siege Activations . | . . . Robots Corrupted . | . . . Combat Hostiles . | . . . Parts Fried . | . . . Impact Corruptions . | . . . Robots Melted 1 | . 1 . Combat Hostiles 1 | . 1 . Parts Melted 3 | . 3 . Heat Transferred 1207 | . 1207 . Parts Sabotaged . | . . . Parts Stolen . | . . . Parts Stripped . | . . . Power Chain Reactions . | . . . Missiles Intercepted . | . . . Alert | -11 -10 -9 ------- Run | Scr Mat Mat Peak Influence 210 | . 210 15 Initial . | . . . Average 64 | . 95 7 Maximum Alert Level 1 | . 1 . Low Security (%) 95 | . 93 100 Level 1 4 | . 6 . Level 2 . | . . . Level 3 . | . . . Level 4 . | . . . Level 5 . | . . . High Security . | . . . Max Security . | . . . Squads Dispatched 4 | . 2 2 Investigation 1 | . 1 . Extermination . | . . . Reinforcement 3 | . 1 2 Assault . | . . . Garrison . | . . . Intercept . | . . . Construction Impeded . | . . . Haulers Reinforced . | . . . Stealth | -11 -10 -9 --------- Run | Scr Mat Mat Distress Signals 1 | . 1 . Communications Jammed . | . . . Distress Signals . | . . . Times Spotted 25 | . 17 8 Peak Tracking Total 5 | . 5 5 Tactical Retreats 2 | . 2 . Traps | -11 -10 -9 ------- Run | Scr Mat Mat Traps Triggered 2 | . 2 . Indirectly . | . . . Trap Hack Attempts . | . . . Triggered . | . . . Disarmed . | . . . Reprogrammed . | . . . Reused . | . . . Traps Extracted . | . . . Installed . | . . . Triggered . | . . . Machines | -11 -10 -9 ---------- Run | Scr Mat Mat Machines Disabled 1 | . 1 . Max in Single Turn 1 | . 1 . Machines Sabotaged . | . . . Garrisons Compromised . | . . . Overloaded Fab Kills . | . . . Fab Network Shutdowns . | . . . Hacking | -11 -10 -9 --------- Run | Scr Mat Mat Machines Accessed 2 | . 1 1 Terminals 2 | . 1 1 Fabricators . | . . . Repair Stations . | . . . Recycling Units . | . . . Scanalyzers . | . . . Garrison Access . | . . . Total Hacks 7 | . 3 4 Successful 1 | . 1 . Failed 6 | . 2 4 Catastrophic 1 | . . 1 Database Lockouts . | . . . Manual . | . . . Terminals 7 | . 3 4 Fabricators . | . . . Repair Stations . | . . . Recycling Units . | . . . Scanalyzers . | . . . Garrison Access . | . . . Terminal Hacks 1 | . 1 . Hauler Manifests 1 | . 1 . Fabricator Hacks . | . . . Repair Station Hacks . | . . . Recycling Unit Hacks . | . . . Scanalyzer . | . . . Garrison Access Hacks . | . . . Unauthorized Hacks . | . . . Terminals . | . . . Fabricators . | . . . Repair Stations . | . . . Recycling Units . | . . . Scanalyzers . | . . . Garrison Access . | . . . Data Cores Recovered . | . . . Used . | . . . Hacking Detections 2 | . 1 1 Full Trace Events 2 | . 1 1 Feedback Events . | . . . Feedback Blocked . | . . . Robot Schematics Acquired . | . . . Robots Built . | . . . Matter . | . . . Time . | . . . Total Robot Build Rating . | . . . Part Schematics Acquired . | . . . Parts Built . | . . . Matter . | . . . Time . | . . . Total Part Build Rating . | . . . Parts Repaired . | . . . Time . | . . . Parts Recycled . | . . . Recycled Matter . | . . . Retrieved Matter . | . . . Retrieved Components . | . . . Parts Scanalyzed . | . . . Part Schematics Acquired . | . . . Parts Damaged . | . . . Bothacking | -11 -10 -9 ------------ Run | Scr Mat Mat Used RIF Installer . | . . . Robots Hacked . | . . . Non-combat . | . . . Combat . | . . . Robot Hacks Applied . | . . . Relay Couplers Released . | . . . Robots Rewired . | . . . Allies Hacked . | . . . Hacks Repelled . | . . . Allies | -11 -10 -9 -------- Run | Scr Mat Mat Total Allies . | . . . Largest Group . | . . . Highest-Rated Group . | . . . Highest-Rated Ally . | . . . Total Orders . | . . . Ally Attacks . | . . . Total Damage . | . . . Kills . | . . . Allies Corrupted . | . . . Allies Melted . | . . . Intel | -11 -10 -9 ------- Run | Scr Mat Mat Robot Analysis Total . | . . . Derelict Logs Recovered . | . . . Drone Launches . | . . . Drone Recoveries . | . . . Exploration | -11 -10 -9 ------------- Run | Scr Mat Mat Turns Passed 625 | . 408 217 Spaces Moved 227 | 1 134 92 Core 12 | . 1 11 Treads 117 | . 36 81 Legs 98 | 1 97 . Wheels . | . . . Hover . | . . . Flight . | . . . Fastest Speed 120 | 120 120 180 Average Speed 204 | 120 191 224 Slowest Speed 550 | 120 550 550 Overloaded Moves . | . . . Propulsion Burnouts . | . . . Robots Hopped . | . . . Cave-ins Triggered . | . . . Exploration Rate (%) 14 | 2 27 13 Regions Visited 2 Branch Regions . Pre-discovered Areas . | . . . Known Exits Taken . | . . . Unknown Exits Taken 2 | 1 1 . Scrap Searched . | . . . Spaces Dug 2 | . 2 . Terrain Destroyed 18 | . 18 . Melee . | . . . Projectile . | . . . AOE 18 | . 18 . Terrain Rammed . | . . . Walls Destroyed . | . . . Machines Disabled . | . . . Actions | -11 -10 -9 --------- Run | Scr Mat Mat Total 309 | . 213 96 Wait 7 | . 7 . Move 225 | . 133 92 Hop . | . . . Pick Up 5 | . 4 1 Fast Attach 10 | . 9 1 Attach 2 | . 2 . Detach 2 | . 2 . Swap 4 | . 4 . Drop 2 | . 2 . Fire 45 | . 45 . Melee . | . . . Ram 1 | . . 1 Kick . | . . . Crush 6 | . 5 1 Escape Stasis . | . . . Rewire . | . . . Trap . | . . . Miscellaneous . | . . . Route ------- -11/Scrapyard -10/Materials -9/Materials History --------- Turn | Location | Event 1 | -11/Scrapyard | Discovered new exit (range 0) 1 | -11/Scrapyard | Entered Materials 100 | -10/Materials | Core integrity fell below 50% 184 | -10/Materials | Lost 4 parts (1p3w) 258 | -10/Materials | Lost 4 parts (1p1n2w) 267 | -10/Materials | Core integrity fell below 20% 367 | -10/Materials | Discovered new exit (range 9) 409 | -10/Materials | Entered another Materials area 409 | -9/Materials | Evolved 2 slots: Utility x2 520 | -9/Materials | Build established: Mutant 626 | -9/Materials | Self-destructed Last Messages --------------- 00409_ Aluminum Leg destroyed. PARAMETERS=UTILITY_2 LOCATION=UNKNOWN GOAL=ESCAPE 00442_ Acquired Lgt. Treads. 00478_ Connecting with Terminal... 00478_ Current location identified: Materials 00496_ O-16 Technician: "IFF HANDSHAKE FAILED. SECURING TERMINAL." 00502_ ALERT: Hostiles spotted, dispatching reinforcements to Terminal M006. 00536_ Slammed into O-16 Technician. 00536_ K-01 Serf collects debris. 00542_ O-16 Technician: "IFF HANDSHAKE FAILED. SECURING TERMINAL." 00545_ K-01 Serf collects debris. 00552_ ALERT: Hostiles spotted, dispatching reinforcements to Terminal M003. 00556_ K-01 Serf cleans the Atomic Centrifuge. 00591_ Lgt. Treads destroyed. 00603_ Slammed into O-16 Technician. 00625_ Acquired EM Shotgun. Map ----- +----------------------------------------------------+ | ?????????????????????????????????????????????????? | | ?????????????????????????????????????????????????? | | ?????????????????????????????????????????????????? | | ?????????????????????????????????????????????????? | | ?????????????????????????????????????????????????? | | ?????????????????????????????????????????????????? | | ?????????????????????????????????????????????????? | | ?????????????????????????????????????????????????? | | ????????????????????????????? ???????????????????? | | ????????????????????????????? ???????????????????? | | ????????????????????????????? ???????????????????? | | ????????????????????????????? ???????????????????? | | ????????????????????????????? ???????????????????? | | ????????????????????????????? ???????????????????? | | ????????????????????????????# ?????????? ????????? | | ????????????????????????????# #????????? ??#?????? | | ????????????????????????????# #????????? #?????? | | ????????????????????????????# #????????# ##????? | | ????????????????????????????# #####+### #????? | | ????????????????????????????# u #????? | | ????????????????????????????# T #????? | | ?????????????????????######## #????? | | ?????????????????????# g #????? ?????? | | ?????????????????????# T # ####### ####### | | ?????????????????????# # # ## # | | ?????????????????????# @ # # ## # """ | | ?????????????????????# # # ## # """ | | ?????????????????????# # # ## # """ | | ?????????????????????######## # / # | | ????????????????????????????# # ## # | | ????????????????????????????# # ## # ""T"" | | ????????????????????????????# # ## # """"" | | ?????????????????????????#### # ## # | | ?????????????????????????# ###/### #####+# | | ?????????????????????????# | | ?????????????????????????# | | ?????????????????????????# " """"" " """" | | ???????????????????????#"" """"""""" """"""" | | ???????????????????????#"Y """ """ """ "" | | ???????????????????????#"" "" | | ???????????????????????### "" | | ?????????????????????????# "T """ """ """ | | ?????????????????????????# "" """"""""" """ | | ?????????????????????????# "" """"" """ | | ?????????????????????????# | | ?????????????????????????# | | ?????????????????????????#######"T"############### | | ???????????????????????????????#####?????????????? | | | | | +----------------------------------------------------+ Best States ------------- Heat Dissipation 28 Energy Generation 10 Energy Capacity 250 Matter Stores 300 Matter Capacity 300 Sight Range 16 Terrain Scan Density 10 Evasion (%) 40 Recoil Reduction 2 Item Schematics ----------------- None Robot Schematics ------------------ None Fabricated ------------ Nothing Alien Tech Used ----------------- None Achievements -------------- None Challenges ------------ None Game ------ Seed GlidesysTachyonScanner Manual? 0 Play Time 00:06:55 Cumulative 73.4 hours Start 2021.11.12 @ 16:08:29 End 2021.11.12 @ 16:17:18 Sessions 1 Manual Loads 0 Difficulty Rogue Special Mode None Game No. 28 Rogue 28 Adventurer 0 Explorer 0 Win Type - Total 1 Types 1/0/0/0/0/0/0/0/0 Lore% 40 Gallery% 52 Achievement% 37 Wizard Run 0 Options --------- ASCII 0 Keyboard 1 Movement Numpad Keybinds 0 Fullscreen 1 Font 36/Smallcaps Map View 76x50 Tactical HUD 1 Map Filters NONE Filters NONE Steam 1 RUN: 820e98df-b087-44c5-974e-f7e1c58399ff